bitfinex/quotes_BTCUSD_20240820
["timestamp","ask_amount","ask_price","bid_price","bid_amount"]
[1724167882562,0.00090311,59212.0,59211.0,0.64011]
[1724167882766,0.00090311,59212.0,59211.0,0.73911]
[1724167882947,0.00090311,59212.0,59211.0,0.813021]
[1724167883557,0.00090311,59212.0,59211.0,0.812021]
[1724167883964,0.00090311,59212.0,59211.0,0.823021]
[1724167885500,0.00190311,59212.0,59211.0,1.20017088]
[1724167886438,0.00190311,59212.0,59211.0,1.12625988]
[1724167886641,0.00190311,59212.0,59211.0,1.10325988]
[1724167887431,0.00190311,59212.0,59211.0,0.52205988]
[1724167888032,0.00190311,59212.0,59211.0,0.54505988]
[1724167888969,0.00190311,59212.0,59211.0,0.52205988]
[1724167889175,0.00190311,59212.0,59211.0,0.06595988]
[1724167890015,0.00090311,59212.0,59211.0,0.41405988]
[1724167890215,0.00090311,59212.0,59211.0,0.78475988]
[1724167890422,0.00190311,59212.0,59211.0,0.78475988]
[1724167890628,0.00190311,59212.0,59211.0,0.88475988]
[1724167890829,0.00090311,59212.0,59211.0,0.88475988]
[1724167891030,0.00090311,59212.0,59211.0,0.90775988]
[1724167891231,0.00090311,59212.0,59211.0,0.99853587]
[1724167892271,0.00090311,59212.0,59211.0,1.00253587]
[1724167892587,0.00090311,59212.0,59211.0,0.99953587]
[1724167892795,0.00090311,59212.0,59211.0,0.90775988]
[1724167892994,0.00090311,59212.0,59211.0,0.93175988]
[1724167892995,0.00190311,59212.0,59211.0,0.93175988]
[1724167893231,0.00190311,59212.0,59211.0,1.12525988]
[1724167893842,0.00904201,59214.0,59213.0,0.43721]
[1724167894182,0.00904201,59214.0,59213.0,0.67729599]
[1724167894303,0.00904201,59214.0,59213.0,0.67529599]
[1724167894959,0.00904201,59214.0,59213.0,0.67729599]
[1724167895382,0.00904201,59214.0,59213.0,0.67529599]
[1724167895765,0.01004201,59214.0,59213.0,0.69429599]
[1724167898123,0.01004201,59214.0,59213.0,0.69829599]
[1724167898685,0.00904201,59223.0,59216.0,0.002]
[1724167898876,0.00904201,59223.0,59222.0,0.57311]
[1724167898992,0.00090421,59232.0,59222.0,0.57311]
[1724167898993,0.00090421,59232.0,59222.0,0.34001]
[1724167899193,0.00090421,59232.0,59231.0,0.03391]
[1724167899396,0.00090421,59232.0,59231.0,0.72731]
[1724167899802,0.00090421,59232.0,59231.0,0.72631]
[1724167900011,0.00090421,59232.0,59231.0,0.834551]
[1724167900639,0.00090421,59232.0,59231.0,0.848551]
[1724167901473,0.00090421,59232.0,59231.0,0.75329735]
[1724167901648,0.00090421,59232.0,59231.0,0.56809735]
[1724167901864,0.00090421,59232.0,59231.0,0.19689735]
[1724167902054,0.00090421,59232.0,59231.0,0.18289735]
[1724167902256,0.00090421,59232.0,59231.0,0.57977312]
[1724167902468,0.00090421,59232.0,59231.0,0.88616043]
[1724167903187,0.00090421,59232.0,59231.0,0.88816043]
[1724167903402,0.00090421,59232.0,59231.0,0.87416043]
[1724167903747,0.00904201,59241.0,59238.0,0.38801]
[1724167903927,0.00904201,59241.0,59238.0,0.75247894]
[1724167904083,0.00904201,59241.0,59238.0,1.15997894]
[1724167904280,0.00904201,59241.0,59238.0,1.19735791]
[1724167904889,0.00904201,59241.0,59238.0,1.15997894]
[1724167905676,0.00904201,59241.0,59238.0,1.19735791]
[1724167905876,0.00904201,59241.0,59238.0,1.15997894]
[1724167906013,0.00904201,59241.0,59238.0,1.22235791]
[1724167906218,0.00904201,59241.0,59238.0,1.22435791]
[1724167906413,0.00904201,59241.0,59238.0,1.237342]
[1724167906630,0.00904201,59241.0,59240.0,0.62551]
[1724167907000,0.00904201,59241.0,59240.0,0.8624251]
[1724167908284,0.00904201,59241.0,59240.0,0.8584251]
[1724167908522,0.00904201,59251.0,59247.0,0.03591]
[1724167908729,0.00904201,59251.0,59250.0,0.38801]
[1724167908925,0.00904201,59251.0,59250.0,0.90341]
[1724167909139,0.00904201,59251.0,59250.0,1.024071]
[1724167909356,0.00904201,59251.0,59250.0,1.028071]
[1724167909525,0.00904201,59251.0,59250.0,1.024071]
[1724167910493,0.00904201,59251.0,59250.0,1.038071]
[1724167910704,0.00904201,59251.0,59250.0,1.225271]
[1724167911402,0.00904201,59251.0,59250.0,1.227271]
[1724167911615,0.00904201,59251.0,59250.0,1.241271]
[1724167911845,0.00904201,59251.0,59250.0,1.25428895]
[1724167912068,0.00904201,59253.0,59252.0,0.60111]
[1724167912295,0.00904201,59253.0,59252.0,0.88150889]
[1724167913206,0.00904201,59253.0,59252.0,0.88550889]
[1724167913435,0.00904201,59253.0,59252.0,0.89550889]
[1724167913643,0.00904201,59253.0,59252.0,0.14591]
[1724167914060,0.00904201,59253.0,59252.0,0.04591]
[1724167914258,0.39084201,59253.0,59252.0,0.04591]
[1724167914458,0.39084201,59253.0,59252.0,0.05991]
[1724167914874,0.39084201,59253.0,59252.0,0.04591]
[1724167915344,0.39084201,59253.0,59252.0,0.03791]
[1724167915758,0.39084201,59253.0,59252.0,0.03991]
[1724167915992,0.39084201,59253.0,59250.0,0.01301795]
[1724167915993,0.39084201,59253.0,59251.0,0.03191]
[1724167916198,0.39184201,59253.0,59252.0,0.006]
[1724167916372,0.39184201,59253.0,59252.0,0.014]
[1724167916611,0.39084201,59253.0,59252.0,0.04791]
[1724167917028,0.00904201,59253.0,59252.0,0.04791]
[1724167917925,0.00904201,59253.0,59252.0,0.07091]
[1724167918132,0.00904201,59253.0,59252.0,0.06491]
[1724167918338,0.00904201,59253.0,59252.0,0.078211]
[1724167918746,0.00904201,59253.0,59252.0,0.081586]
[1724167918991,0.00904201,59253.0,59252.0,0.7033796]
[1724167919604,0.00904201,59253.0,59252.0,0.8033796]
[1724167919827,0.00904201,59253.0,59252.0,0.8093796]
[1724167920434,0.00904201,59253.0,59252.0,0.8113796]
[1724167921185,0.00904201,59253.0,59252.0,0.8053796]
[1724167921565,0.0002,59259.0,59258.0,0.03791]
[1724167921775,0.0002,59259.0,59258.0,0.98731]
[1724167921983,0.0002,59259.0,59258.0,1.186441]
[1724167922841,0.0002,59259.0,59258.0,1.08731]
[1724167923257,0.0002,59259.0,59258.0,1.10131]
[1724167923459,0.0002,59259.0,59258.0,0.51301]
[1724167923678,0.0002,59259.0,59258.0,0.52577043]
[1724167924327,0.0002,59259.0,59258.0,0.53977043]
[1724167924553,0.0002,59259.0,59258.0,0.18367043]
[1724167924768,0.0002,59259.0,59258.0,0.04667043]
[1724167924769,0.4055,59259.0,59258.0,0.04667043]
[1724167924983,0.4055,59259.0,59258.0,0.06067043]
[1724167924984,0.4065,59259.0,59258.0,0.06067043]
[1724167925196,0.4065,59259.0,59258.0,0.07467043]
[1724167925405,0.5926,59259.0,59258.0,0.04791]
[1724167925610,0.5916,59259.0,59258.0,0.06191]
[1724167925819,0.5926,59259.0,59258.0,0.04791]
[1724167926049,0.5926,59259.0,59258.0,0.05691]
[1724167926476,0.5926,59259.0,59258.0,0.04291]
[1724167926477,0.5916,59259.0,59258.0,0.04291]
[1724167927140,0.5916,59259.0,59258.0,0.42201]
[1724167927141,0.0002,59259.0,59258.0,0.42201]
[1724167927343,0.0002,59259.0,59258.0,0.41301]
[1724167927702,0.0002,59259.0,59258.0,0.51701]
[1724167927858,0.0002,59259.0,59258.0,0.588343]
[1724167928074,0.0002,59259.0,59258.0,0.584343]
[1724167928478,0.0002,59259.0,59258.0,0.16491]
[1724167928679,0.4021,59259.0,59258.0,0.16791]
[1724167928879,0.4021,59259.0,59258.0,0.14491]
[1724167928880,0.6026,59259.0,59258.0,0.14491]
[1724167929283,0.4021,59259.0,59258.0,0.14491]
[1724167929496,0.0002,59259.0,59258.0,0.183693]
[1724167930137,0.0002,59259.0,59258.0,0.180693]
[1724167930308,0.0002,59259.0,59258.0,0.080693]
[1724167930533,0.0002,59259.0,59258.0,0.090693]
[1724167930744,0.0002,59259.0,59258.0,0.190693]
[1724167931616,0.0002,59259.0,59258.0,0.17491]
[1724167932092,0.0002,59259.0,59258.0,0.07491]
[1724167932992,0.00110311,59259.0,59258.0,0.07491]
[1724167935457,0.00110311,59259.0,59258.0,0.45578444]
[1724167935658,0.00110311,59259.0,59258.0,0.55241]
[1724167935795,0.00110311,59259.0,59258.0,0.6390151]
[1724167936396,0.00110311,59259.0,59258.0,0.8212151]
[1724167936611,0.04948341,59273.0,59265.0,0.03591]
[1724167936821,0.05851441,59274.0,59268.0,0.3561]
[1724167937038,0.009031,59274.0,59269.0,0.17637738]
[1724167937264,0.001,59270.0,59269.0,0.1]
[1724167937474,0.12470853,59270.0,59269.0,0.1]
[1724167937687,0.12479234,59270.0,59269.0,0.1]
[1724167937889,0.12481697,59270.0,59269.0,0.13391]
[1724167938103,0.5657,59273.0,59269.0,0.13391]
[1724167938104,0.12388644,59271.0,59269.0,0.04702231]
[1724167938329,0.04955614,59270.0,59269.0,0.14702231]
[1724167938524,0.04956215,59272.0,59269.0,0.15702231]
[1724167938960,0.04956215,59273.0,59271.0,0.03391]
[1724167939186,0.05861512,59274.0,59273.0,0.03391]
[1724167939392,0.009031,59274.0,59273.0,0.05691]
[1724167939586,0.009031,59274.0,59273.0,0.08422645]
[1724167940208,0.009031,59274.0,59273.0,0.47692645]
[1724167940413,0.009031,59274.0,59273.0,0.57692645]
[1724167940839,0.009031,59274.0,59273.0,0.78032645]
[1724167941049,0.009031,59274.0,59273.0,0.77832645]
[1724167941259,0.009031,59274.0,59273.0,0.77632645]
[1724167941470,0.009031,59274.0,59273.0,0.79032645]
[1724167941969,0.009031,59274.0,59273.0,0.76301]
[1724167942366,0.009031,59274.0,59273.0,0.74901]
[1724167942687,0.009031,59274.0,59273.0,0.76301]
[1724167942892,0.009031,59274.0,59273.0,0.76701]
[1724167943665,0.009031,59274.0,59273.0,0.76301]
[1724167943866,0.009031,59274.0,59273.0,0.84803645]
[1724167944074,0.009031,59274.0,59273.0,0.74901]
[1724167944279,0.009031,59274.0,59273.0,0.76301]
[1724167944480,0.009031,59274.0,59273.0,0.77701]
[1724167944681,0.009031,59274.0,59273.0,0.76301]
[1724167944880,0.009031,59274.0,59273.0,0.74901]
[1724167945085,0.009031,59274.0,59273.0,0.84623645]
[1724167945291,0.009031,59274.0,59273.0,0.86023645]
[1724167945506,0.009031,59274.0,59273.0,0.84623645]
[1724167945901,0.0002,59279.0,59278.0,0.004]
[1724167946135,0.0002,59279.0,59278.0,0.41301]
[1724167946340,0.0002,59279.0,59278.0,0.564711]
[1724167947176,0.0002,59279.0,59278.0,0.51301]
[1724167947581,0.4048,59279.0,59278.0,0.13391]
[1724167947785,0.0002,59279.0,59278.0,0.13391]
[1724167947986,0.0002,59279.0,59273.0,0.028]
[1724167947987,0.0002,59279.0,59274.0,0.03391]
[1724167948164,0.0002,59279.0,59278.0,0.14791]
[1724167948394,0.0002,59279.0,59278.0,0.518801]
[1724167948597,0.0002,59279.0,59278.0,0.52217444]
[1724167948801,0.0002,59279.0,59278.0,0.53617444]
[1724167949005,0.0002,59279.0,59278.0,0.72557444]
[1724167949218,0.0002,59279.0,59278.0,0.71157444]
[1724167949426,0.0002,59279.0,59278.0,0.708201]
[1724167949606,0.0002,59279.0,59278.0,0.52701]
[1724167950862,0.0002,59279.0,59278.0,0.51301]
[1724167951284,0.0002,59279.0,59278.0,0.52701]
[1724167951776,0.0002,59279.0,59278.0,0.54101]
[1724167951987,0.0002,59279.0,59278.0,0.52701]
[1724167952192,0.0002,59279.0,59278.0,0.51301]
[1724167952397,0.0002,59279.0,59278.0,0.6406846]
[1724167952617,0.0002,59279.0,59278.0,0.54101]
[1724167952820,0.0002,59279.0,59278.0,0.52701]
[1724167953220,0.0002,59279.0,59278.0,0.54101]
[1724167953666,0.5984,59279.0,59278.0,0.16191]
[1724167953911,0.5984,59279.0,59278.0,0.06191]
[1724167954141,0.5984,59279.0,59278.0,0.16191]
[1724167954340,0.69759528,59279.0,59278.0,0.16191]
[1724167954669,0.67262424,59279.0,59278.0,0.13391]
[1724167954871,0.5984,59279.0,59278.0,0.13391]
[1724167955070,0.5984,59279.0,59278.0,0.04991]
[1724167955475,0.69759528,59279.0,59278.0,0.04991]
[1724167955703,0.69759528,59279.0,59278.0,0.016]
[1724167955704,0.5994,59279.0,59278.0,0.016]
[1724167956058,0.74719292,59279.0,59278.0,0.016]
[1724167956256,0.74719292,59279.0,59278.0,0.04991]
[1724167956257,0.72198864,59279.0,59278.0,0.04991]
[1724167956458,0.5984,59279.0,59278.0,0.04991]
[1724167957098,0.72199008,59279.0,59278.0,0.04991]
[1724167957307,0.72199008,59279.0,59278.0,0.04091]
[1724167957308,0.5984,59279.0,59278.0,0.04091]
[1724167957481,0.5984,59279.0,59278.0,0.002]
[1724167957904,0.5984,59279.0,59278.0,0.03591]
[1724167958112,0.59930311,59279.0,59278.0,0.03591]
[1724167958330,0.59930311,59279.0,59278.0,0.04291]
[1724167958677,0.59930311,59279.0,59278.0,0.04991]
[1724167958901,0.41770311,59279.0,59278.0,0.04991]
[1724167959129,0.00110311,59279.0,59278.0,0.04991]
[1724167959561,0.60030311,59279.0,59278.0,0.04991]
[1724167959772,0.60030311,59279.0,59278.0,0.016]
[1724167960188,0.72033342,59279.0,59278.0,0.016]
[1724167960577,0.72033342,59279.0,59278.0,0.0189]
[1724167960953,0.72033342,59279.0,59278.0,0.0099]
[1724167961171,0.60130311,59279.0,59278.0,0.0029]
[1724167961454,0.60330311,59279.0,59278.0,0.0029]
[1724167961704,0.60330311,59279.0,59278.0,0.0049]
[1724167961911,0.60030311,59279.0,59278.0,0.0079]
[1724167962135,0.60030311,59279.0,59278.0,0.0059]
[1724167962335,0.60230311,59279.0,59278.0,0.0029]
[1724167962448,0.76900086,59279.0,59278.0,0.0029]
[1724167963477,0.60230311,59279.0,59278.0,0.0029]
[1724167963675,0.60030311,59279.0,59278.0,0.0029]
[1724167964085,0.76892134,59279.0,59278.0,0.0029]
[1724167964284,0.76893445,59279.0,59278.0,0.0029]
[1724167964702,0.76693445,59279.0,59278.0,0.0029]
[1724167964916,0.60030311,59279.0,59278.0,0.0029]
[1724167965115,0.60230311,59279.0,59278.0,0.0029]
[1724167965513,0.60030311,59279.0,59278.0,0.0029]
[1724167967099,0.76693445,59279.0,59278.0,0.0029]
[1724167967294,0.60030311,59279.0,59278.0,0.0029]
[1724167967499,0.60130311,59279.0,59278.0,0.0029]
[1724167967959,0.60030311,59279.0,59278.0,0.0029]
[1724167968369,0.72233342,59279.0,59278.0,0.0029]
[1724167968594,0.60330311,59279.0,59278.0,0.0029]
[1724167968806,0.84631195,59279.0,59278.0,0.0029]
[1724167969000,0.60530311,59279.0,59278.0,0.0029]
[1724167969202,0.60530311,59279.0,59278.0,0.00205999]
[1724167969203,0.74025811,59279.0,59278.0,0.00205999]
[1724167969382,1.17414689,59279.0,59278.0,0.00205999]
[1724167969796,0.603,59275.0,59274.0,0.000821]
[1724167970097,4.33523417,59275.0,59274.0,0.000821]
[1724167970305,4.33523417,59275.0,59249.0,0.49249471]
[1724167970306,0.736021,59250.0,59249.0,0.00020317]
[1724167970516,5.33765517,59250.0,59249.0,0.00020317]
[1724167970709,6.41303917,59250.0,59249.0,0.00020317]
[1724167970910,6.26303551,59250.0,59249.0,0.00020317]
[1724167971319,6.45093551,59250.0,59249.0,0.00020317]
[1724167971525,6.37878378,59250.0,59249.0,0.00020317]
[1724167971723,6.49990979,59250.0,59249.0,0.00020317]
[1724167972255,6.49390979,59250.0,59249.0,0.00020317]
[1724167972467,6.49990979,59250.0,59249.0,0.00020317]
[1724167973271,6.76995179,59250.0,59249.0,0.00013149]
[1724167974071,7.01201105,59250.0,59249.0,0.00013149]
[1724167974278,7.01001105,59250.0,59249.0,0.00013149]
[1724167974728,7.01201105,59250.0,59249.0,0.00013149]
[1724167975131,6.64882578,59250.0,59249.0,0.00013149]
[1724167975303,6.37878378,59250.0,59249.0,0.00013149]
[1724167975506,6.65082578,59250.0,59249.0,0.00013149]
[1724167975750,6.38078378,59250.0,59249.0,0.00013149]
[1724167976086,6.65082578,59250.0,59249.0,0.00013149]
[1724167977284,6.65082578,59250.0,59249.0,8.505e-05]
[1724167977622,6.64882578,59250.0,59249.0,8.505e-05]
[1724167978042,6.65082578,59250.0,59249.0,8.505e-05]
[1724167978491,7.09622578,59250.0,59249.0,8.505e-05]
[1724167978840,7.21478704,59250.0,59249.0,8.505e-05]
[1724167979261,6.65182578,59250.0,59249.0,8.505e-05]
[1724167979459,6.64982578,59250.0,59249.0,8.505e-05]
[1724167979894,6.76789943,59250.0,59249.0,8.505e-05]
[1724167981010,7.14714143,59250.0,59249.0,8.505e-05]
[1724167981197,2.27946526,59250.0,59249.0,4.505e-05]
[1724167981403,2.42943361,59250.0,59249.0,4.505e-05]
[1724167981605,2.43143361,59250.0,59249.0,4.505e-05]
[1724167981870,2.76743361,59250.0,59249.0,4.505e-05]
[1724167982281,2.76743361,59250.0,59212.0,0.012576]
[1724167982282,1.580304,59240.0,59212.0,0.012576]
[1724167982521,1.913617,59240.0,59215.0,0.01261136]
[1724167982750,1.370443,59240.0,59215.0,0.01261136]
[1724167982951,1.369443,59240.0,59215.0,0.01261136]
[1724167983290,1.2344,59240.0,59215.0,0.01261136]
[1724167983485,1.46731661,59240.0,59215.0,0.01261136]
[1724167983686,1.33227361,59240.0,59218.0,0.1]
[1724167983893,1.33229639,59240.0,59218.0,0.1]
[1724167984091,1.33229639,59240.0,59228.0,0.416]
[1724167984092,1.30229639,59240.0,59228.0,0.416]
[1724167984321,1.30229639,59240.0,59229.0,0.1]
[1724167984322,1.25334214,59240.0,59229.0,0.1]
[1724167984731,1.2044,59240.0,59229.0,0.1]
[1724167984901,1.35057923,59240.0,59229.0,0.1]
[1724167985112,1.38057923,59240.0,59229.0,0.1]
[1724167985678,1.38257923,59240.0,59229.0,0.1]
[1724167986065,1.2364,59240.0,59229.0,0.1]
[1724167986740,1.0071,59240.0,59229.0,0.1]
[1724167987426,0.603,59240.0,59229.0,0.1]
[1724167987629,0.603,59240.0,59239.0,0.563321]
[1724167987630,0.002,59240.0,59239.0,0.563321]
[1724167987847,0.002,59240.0,59239.0,0.686321]
[1724167988090,0.003,59240.0,59239.0,0.663321]
[1724167988486,0.003,59240.0,59239.0,0.6758092]
[1724167988666,0.001,59240.0,59239.0,0.6758092]
[1724167989176,0.003,59240.0,59239.0,0.6758092]
[1724167989577,0.003,59240.0,59239.0,0.6778092]
[1724167989775,0.002,59240.0,59239.0,0.6988092]
[1724167990217,0.002,59240.0,59239.0,0.7347192]
[1724167990592,0.002,59240.0,59239.0,0.7327192]
[1724167990926,0.003,59240.0,59239.0,0.100821]
[1724167991138,0.06501614,59240.0,59239.0,0.100821]
[1724167991313,0.06501614,59240.0,59239.0,0.001821]
[1724167991523,0.46561614,59240.0,59239.0,0.001821]
[1724167991725,0.46561614,59240.0,59239.0,0.000821]
[1724167992163,0.46561614,59240.0,59239.0,0.005821]
[1724167992164,1.05564614,59240.0,59239.0,0.005821]
[1724167992361,1.12902897,59240.0,59239.0,0.005821]
[1724167992560,0.72389897,59240.0,59239.0,0.005821]
[1724167992786,0.72389897,59240.0,59239.0,0.000821]
[1724167992787,0.65051614,59240.0,59239.0,0.000821]
[1724167992938,0.64651614,59240.0,59239.0,0.000821]
[1724167993479,0.64851614,59240.0,59239.0,0.000821]
[1724167993891,0.65251614,59240.0,59239.0,0.000821]
[1724167994250,0.64851614,59240.0,59239.0,0.000821]
[1724167994655,0.64651614,59240.0,59239.0,0.000821]
[1724167994837,0.65051614,59240.0,59239.0,0.000821]
[1724167995065,0.5845,59240.0,59239.0,0.000821]
[1724167995786,0.003,59240.0,59239.0,0.000821]
[1724167996181,0.001,59240.0,59239.0,0.000821]
[1724167996552,0.003,59240.0,59239.0,0.000821]
[1724167997869,0.001,59240.0,59239.0,0.395521]
[1724167998069,0.001,59240.0,59239.0,0.000821]
[1724167998184,0.00637831,59240.0,59239.0,0.000821]
[1724167998393,0.003,59240.0,59239.0,0.000821]
[1724167998834,0.001,59240.0,59239.0,0.000821]
[1724167999209,0.003,59240.0,59239.0,0.000821]
[1724167999776,0.001,59240.0,59239.0,0.000821]
[1724168001741,0.003,59240.0,59239.0,0.000821]
[1724168001947,0.002,59240.0,59239.0,0.417221]
[1724168002150,0.002,59240.0,59239.0,0.540221]
[1724168002336,0.201,59243.0,59239.0,0.540221]
[1724168002710,0.401,59241.0,59240.0,0.1]
[1724168005538,0.401,59241.0,59240.0,0.101]
[1724168007840,0.47335591,59241.0,59240.0,0.101]
[1724168008049,0.47335591,59241.0,59240.0,0.001]
[1724168008050,0.88905591,59241.0,59240.0,0.001]
[1724168008503,1.03612686,59241.0,59240.0,0.001]
[1724168008874,0.47335591,59241.0,59239.0,0.000821]
[1724168009082,0.001,59240.0,59239.0,0.000821]
[1724168009279,0.123785,59240.0,59239.0,0.000821]
[1724168009482,0.001,59240.0,59239.0,0.000821]
[1724168009707,0.12379876,59240.0,59239.0,0.100821]
[1724168010117,0.001,59240.0,59239.0,0.100821]
[1724168012720,0.001,59240.0,59239.0,0.101821]
[1724168012926,0.001,59240.0,59239.0,0.103821]
[1724168013298,0.16677833,59240.0,59239.0,0.103821]
[1724168013479,0.24345616,59240.0,59239.0,0.103821]
[1724168013676,0.16677833,59240.0,59239.0,0.103821]
[1724168014090,0.001,59240.0,59239.0,0.103821]
[1724168014916,0.00437831,59240.0,59239.0,0.103821]
[1724168015319,0.001,59240.0,59239.0,0.103821]
[1724168015526,0.00437831,59240.0,59239.0,0.103821]
[1724168015701,0.10272614,59240.0,59239.0,0.103821]
[1724168015905,0.09934783,59240.0,59239.0,0.103821]
[1724168016289,0.09934783,59240.0,59239.0,0.003821]
[1724168016496,0.54032614,59240.0,59239.0,0.003821]
[1724168016700,0.54032614,59240.0,59239.0,0.000821]
[1724168016899,0.54032614,59240.0,59239.0,1.031e-05]
[1724168017100,0.4,59225.0,59223.0,0.3912]
[1724168017337,0.4,59225.0,59224.0,0.03386]
[1724168017524,0.401,59225.0,59224.0,0.03386]
[1724168018654,0.4,59225.0,59224.0,0.13386]
[1724168019519,0.4,59225.0,59224.0,0.13786]
[1724168020038,0.4,59225.0,59224.0,0.138681]
[1724168020241,0.4,59225.0,59224.0,0.545681]
[1724168021072,0.4,59225.0,59224.0,0.550681]
[1724168021613,0.16667826,59228.0,59225.0,0.4116]
[1724168021821,0.16667826,59228.0,59226.0,0.03386]
[1724168022018,0.13833723,59243.0,59227.0,0.62726]
[1724168022019,0.16667826,59230.0,59227.0,0.62726]
[1724168022217,0.001,59232.0,59229.0,0.03386]
[1724168023637,0.001,59232.0,59229.0,0.03686]
[1724168023860,0.16675706,59230.0,59229.0,0.03686]
[1724168024261,0.16675706,59231.0,59229.0,0.03686]
[1724168024506,0.16675706,59231.0,59230.0,0.398]
[1724168024621,0.16675706,59232.0,59230.0,0.43186]
[1724168024822,0.16775706,59232.0,59230.0,0.43186]
[1724168025023,0.16775706,59232.0,59231.0,0.13386]
[1724168026178,0.16675706,59232.0,59231.0,0.13386]
[1724168026530,0.16675706,59233.0,59231.0,0.13386]
[1724168027080,0.16675706,59233.0,59231.0,0.14386]
[1724168027315,0.16675706,59233.0,59232.0,0.41166]
[1724168027467,0.16675706,59234.0,59232.0,0.51066]
[1724168027791,0.001,59236.0,59233.0,0.13386]
[1724168028601,0.001,59235.0,59233.0,0.13386]
[1724168028828,0.201,59234.0,59233.0,0.13386]
[1724168028984,0.201,59234.0,59231.0,0.009]
[1724168028985,0.401,59232.0,59231.0,0.009]
[1724168029159,0.7802,59232.0,59231.0,0.017]
[1724168029509,0.87832,59232.0,59231.0,0.017]
[1724168029731,1.06952,59232.0,59231.0,0.009]
[1724168029926,0.401,59225.0,59222.0,0.03386]
[1724168031098,0.401,59225.0,59224.0,0.003821]
[1724168031306,0.401,59225.0,59224.0,0.000821]
[1724168031685,0.401,59225.0,59224.0,0.002821]
[1724168032453,0.401,59225.0,59224.0,0.005821]
[1724168032915,0.401,59225.0,59224.0,0.002821]
[1724168033333,0.401,59225.0,59224.0,0.004821]
[1724168035111,0.8718378,59225.0,59224.0,0.004821]
[1724168035495,0.401,59225.0,59224.0,0.004821]
[1724168035896,0.401,59225.0,59224.0,0.002821]
[1724168036049,0.401,59225.0,59224.0,0.003821]
[1724168036430,0.43,59225.0,59224.0,0.003821]
[1724168036659,0.43,59225.0,59224.0,0.002821]
[1724168036833,0.431,59225.0,59224.0,0.000821]
[1724168037844,0.4941,59225.0,59224.0,0.000821]
[1724168038265,0.73766414,59225.0,59224.0,0.000821]
[1724168038920,0.4941,59225.0,59224.0,0.000821]
[1724168039048,1.0763,59225.0,59224.0,0.000821]
[1724168039665,1.0793,59225.0,59224.0,0.000821]
[1724168039874,1.214378,59225.0,59224.0,0.000821]
[1724168040272,1.0803,59225.0,59224.0,0.000821]
[1724168040492,1.215378,59225.0,59224.0,0.00053878]
[1724168040695,1.75151475,59225.0,59224.0,0.00053878]
[1724168040902,1.48135875,59225.0,59224.0,0.00053878]
[1724168041115,1.214378,59225.0,59224.0,0.00053878]
[1724168042046,1.215378,59225.0,59224.0,0.00053878]
[1724168042244,1.75569,59225.0,59224.0,0.00053878]
[1724168042464,1.75569,59225.0,59214.0,0.00821]
[1724168042465,1.167,59215.0,59214.0,0.00821]
[1724168042581,1.164,59215.0,59214.0,0.00821]
[1724168044859,1.40723195,59215.0,59214.0,0.00821]
[1724168045078,1.164,59215.0,59214.0,0.00321]
[1724168045282,1.46723195,59215.0,59214.0,0.00321]
[1724168045477,1.46818634,59215.0,59214.0,0.00321]
[1724168046092,1.225,59215.0,59214.0,0.00321]
[1724168046288,0.602,59215.0,59214.0,0.00321]
[1724168049810,2.2921019,59215.0,59214.0,0.0021349]
[1724168050009,2.3161019,59215.0,59214.0,0.0021349]
[1724168050223,2.3151019,59215.0,59214.0,0.0021349]
[1724168050763,2.3151019,59215.0,59211.0,0.000821]
[1724168050764,1.548152,59212.0,59211.0,0.000821]
[1724168050969,1.907552,59212.0,59211.0,0.000821]
[1724168051194,2.245152,59212.0,59211.0,0.000821]
[1724168051800,2.51217831,59212.0,59211.0,0.000821]
[1724168052257,2.51217831,59212.0,59211.0,0.00029376]
[1724168052258,2.246152,59212.0,59211.0,0.00029376]
[1724168052483,2.40077617,59212.0,59211.0,0.00029376]
[1724168052856,2.39977617,59212.0,59211.0,0.00029376]
[1724168053290,2.40077617,59212.0,59211.0,0.00029376]
[1724168053726,2.41353148,59212.0,59211.0,0.00017098]
[1724168054736,2.41253148,59212.0,59211.0,0.00017098]
[1724168055524,2.43122046,59212.0,59211.0,0.00017098]
[1724168056269,1.311605,59206.0,59205.0,0.00067304]
[1724168056447,2.270705,59206.0,59205.0,0.00067304]
[1724168058227,2.271705,59206.0,59205.0,0.00067304]
[1724168059058,1.233011,59199.0,59198.0,0.00821]
[1724168059247,2.6996061,59199.0,59198.0,0.00821]
[1724168059491,3.89552513,59199.0,59198.0,0.00821]
[1724168060140,4.7502541,59199.0,59198.0,0.00821]
[1724168060350,4.86352044,59199.0,59198.0,0.00310401]
[1724168060970,3.69102044,59199.0,59198.0,0.00310401]
[1724168061172,3.81953915,59199.0,59198.0,0.00310401]
[1724168061782,3.81955519,59199.0,59198.0,0.00310401]
[1724168061991,3.81955519,59199.0,59198.0,0.00182514]
[1724168062203,2.9299801,59199.0,59198.0,0.00182514]
[1724168062407,2.9529801,59199.0,59198.0,0.00182514]
[1724168063222,2.9509801,59199.0,59198.0,0.00182514]
[1724168063427,2.9279801,59199.0,59198.0,0.00182514]
[1724168063844,2.6577061,59199.0,59198.0,0.00182514]
[1724168064043,2.3834321,59199.0,59198.0,0.00182514]
[1724168064201,2.3834321,59199.0,59195.0,0.00821]
[1724168064202,0.405432,59196.0,59195.0,0.00682395]
[1724168064398,0.28976817,59196.0,59195.0,0.00682395]
[1724168064830,0.15562417,59196.0,59195.0,0.00682395]
[1724168065002,0.29076817,59196.0,59195.0,0.00682395]
[1724168065531,0.002,59196.0,59195.0,0.00682395]
[1724168066493,0.12377445,59196.0,59195.0,0.00682395]
[1724168066752,0.001,59196.0,59195.0,0.00682395]
[1724168066959,0.09921172,59196.0,59195.0,0.00682395]
[1724168067519,0.001,59196.0,59195.0,0.00682395]
[1724168067728,0.09921845,59196.0,59195.0,0.00682395]
[1724168067933,0.002,59196.0,59195.0,0.00682395]
[1724168068278,0.22622344,59196.0,59195.0,0.00682395]
[1724168068480,0.22522344,59196.0,59195.0,0.00682395]
[1724168068892,0.1002322,59196.0,59195.0,0.00682395]
[1724168069092,0.1002322,59196.0,59195.0,0.42212395]